bitfinex-derivatives/quotes_BTCF0:USTF0_20240829
["timestamp","ask_amount","ask_price","bid_price","bid_amount"]
[1724958359529,0.38215371,59241.0,59231.0,0.3610534]
[1724958359530,0.3608,59241.0,59231.0,0.3610534]
[1724958359833,0.3608,59241.0,59224.0,0.084403]
[1724958359834,0.3608,59232.0,59224.0,0.084403]
[1724958360134,0.084398,59229.0,59221.0,0.084407]
[1724958360320,0.3608,59227.0,59223.0,0.084405]
[1724958360635,0.3608,59234.0,59219.0,0.7908]
[1724958360821,0.084391,59234.0,59229.0,0.3608]
[1724958361025,0.3608,59242.0,59229.0,0.3608]
[1724958361026,0.0002526,59232.0,59229.0,0.3608]
[1724958361429,0.0002526,59232.0,59221.0,0.0002534]
[1724958361430,0.3608,59231.0,59221.0,0.0002534]
[1724958361733,0.3608,59226.0,59221.0,0.0002534]
[1724958362028,0.084406,59222.0,59221.0,0.0002534]
[1724958362932,0.084406,59222.0,59221.0,1e-08]
[1724958363330,0.084406,59222.0,59221.0,0.00100001]
[1724958363733,0.08442,59213.0,59209.0,0.3608]
[1724958363929,0.084424,59210.0,59209.0,0.3608]
[1724958364234,0.084421,59212.0,59209.0,0.3608]
[1724958364429,0.3608,59214.0,59198.0,0.72868]
[1724958364430,0.3608,59214.0,59201.0,0.084436]
[1724958364627,0.3608,59208.0,59198.0,0.00096]
[1724958364834,0.3608,59208.0,59193.0,0.3608]
[1724958364835,0.3608,59202.0,59193.0,0.3608]
[1724958365030,0.3608,59202.0,59192.0,0.0002534]
[1724958365031,0.084441,59198.0,59192.0,0.0002534]
[1724958365229,0.084442,59197.0,59192.0,0.0002534]
[1724958365430,0.0002534,59201.0,59196.0,0.3608]
[1724958365631,0.3608,59209.0,59196.0,0.36936017]
[1724958365829,0.3608,59215.0,59206.0,0.43]
[1724958365830,0.02164555,59213.0,59206.0,0.43]
[1724958366129,0.3707,59228.0,59212.0,0.3608]
[1724958366334,0.3707,59228.0,59224.0,0.084404]
[1724958366535,0.7315,59228.0,59217.0,0.3608]
[1724958366720,0.3608,59223.0,59217.0,0.0002534]
[1724958367030,0.445205,59223.0,59217.0,0.0002534]
[1724958367342,0.3608,59223.0,59217.0,0.0002534]
[1724958368535,0.75425801,59228.0,59222.0,0.084406]
[1724958368838,0.02275801,59228.0,59223.0,0.084405]
[1724958369131,0.001,59223.0,59219.0,0.3608]
[1724958369727,0.001,59223.0,59217.0,0.0012534]
[1724958369938,0.084412,59218.0,59217.0,0.0012534]
[1724958370131,0.084412,59218.0,59217.0,0.0002534]
[1724958370834,0.591012,59218.0,59217.0,1e-08]
[1724958371034,1.1066,59218.0,59204.0,0.3608]
[1724958371229,1.1066,59218.0,59190.0,0.43]
[1724958371230,0.084431,59205.0,59194.0,0.3608]
[1724958371430,0.3608,59210.0,59200.0,0.084437]
[1724958371431,0.084425,59209.0,59200.0,0.084437]
[1724958371734,0.084425,59209.0,59186.0,0.3608]
[1724958371735,0.3608,59205.0,59187.0,0.3608]
[1724958371934,0.3608,59198.0,59192.0,0.084449]
[1724958372232,0.3608,59193.0,59190.0,0.0002534]
[1724958372627,0.084451,59191.0,59190.0,0.0002534]
[1724958372823,0.3608,59193.0,59191.0,0.08445]
[1724958373030,0.3608,59199.0,59196.0,0.084443]
[1724958373424,0.0002534,59202.0,59193.0,0.3608]
[1724958373928,0.0002534,59202.0,59196.0,0.084443]
[1724958374131,0.0002534,59202.0,59199.0,0.084438]
[1724958374338,0.0002534,59202.0,59193.0,0.3608]
[1724958374530,0.3608,59204.0,59203.0,0.084434]
[1724958374930,0.3608,59204.0,59201.0,0.05035997]
[1724958375135,0.3608,59204.0,59202.0,0.05035997]
[1724958375337,0.50672,59203.0,59196.0,0.05033404]
[1724958375539,0.084445,59195.0,59188.0,0.05033404]
[1724958375736,0.3608,59191.0,59185.0,0.05033404]
[1724958375937,0.3608,59191.0,59181.0,0.05033404]
[1724958376142,0.3608,59191.0,59170.0,0.3608]
[1724958376143,0.3608,59183.0,59179.0,0.06674013]
[1724958376440,0.3608,59183.0,59182.0,0.05036535]
[1724958376640,0.3608,59183.0,59170.0,0.3608]
[1724958376641,0.084465,59181.0,59180.0,0.05036535]
[1724958376841,0.084468,59179.0,59177.0,0.05036535]
[1724958377040,0.3608,59178.0,59176.0,0.05036535]
[1724958377334,0.3608,59178.0,59175.0,0.0002534]
[1724958378337,0.084472,59176.0,59175.0,0.0002534]
[1724958378529,0.3618,59183.0,59175.0,0.7910534]
[1724958378730,0.001,59183.0,59182.0,0.084464]
[1724958378928,0.0002534,59186.0,59182.0,0.084464]
[1724958379133,0.0002534,59186.0,59181.0,0.05032028]
[1724958379336,0.0002534,59186.0,59180.0,0.41112028]
[1724958379836,0.0002534,59186.0,59181.0,0.05032028]
[1724958380038,0.0002534,59186.0,59185.0,0.445259]
[1724958380039,0.0012534,59186.0,59185.0,0.445259]
[1724958380240,0.3608,59202.0,59185.0,0.7216]
[1724958380541,0.3608,59202.0,59197.0,0.084441]
[1724958380740,0.3608,59202.0,59191.0,0.05029622]
[1724958380943,0.3608,59202.0,59190.0,0.41109622]
[1724958381141,0.3608,59202.0,59201.0,0.084436]
[1724958381345,0.0002526,59207.0,59206.0,0.084429]
[1724958381742,0.0002526,59207.0,59206.0,0.13472522]
[1724958381944,0.0002526,59207.0,59206.0,0.084429]
[1724958382247,0.0002526,59207.0,59206.0,0.13472522]
[1724958382446,0.0002526,59207.0,59206.0,0.084429]
[1724958382945,0.0002526,59207.0,59204.0,0.05028358]
[1724958383250,0.0002526,59207.0,59206.0,0.001]
[1724958383438,0.4454806,59207.0,59206.0,0.001]
[1724958383741,0.0002526,59207.0,59206.0,0.001]
[1724958384337,0.5069726,59207.0,59206.0,0.001]
[1724958384539,0.5914006,59207.0,59206.0,0.001]
[1724958385342,0.39181631,59207.0,59206.0,0.001]
[1724958385543,0.46647105,59208.0,59206.0,0.19933169]
[1724958385741,0.38204405,59208.0,59206.0,0.19933169]
[1724958385943,0.3608,59213.0,59207.0,0.19933169]
[1724958386136,0.3608,59213.0,59212.0,0.28375269]
[1724958386537,0.3608,59218.0,59212.0,0.19933169]
[1724958386739,0.3608,59218.0,59216.0,0.084415]
[1724958386938,0.3608,59218.0,59217.0,0.084414]
[1724958387243,0.13195392,59264.0,59217.0,0.084414]
[1724958387244,0.3608,59233.0,59231.0,0.084393]
[1724958387445,0.3608,59233.0,59226.0,0.0002534]
[1724958387634,0.3608,59233.0,59231.0,0.084393]
[1724958387949,0.38233462,59233.0,59227.0,0.084399]
[1724958388139,0.38233462,59233.0,59230.0,0.084394]
[1724958388646,0.38233462,59233.0,59231.0,0.084393]
[1724958389543,0.04133531,59232.0,59231.0,0.084393]
[1724958389751,0.04133531,59232.0,59226.0,0.0846544]
[1724958389949,0.09314742,59232.0,59230.0,0.19933169]
[1724958390249,0.19021974,59231.0,59230.0,0.19933169]
[1724958390451,0.04133531,59231.0,59230.0,0.19933169]
[1724958391046,0.02321462,59233.0,59230.0,0.19933169]
[1724958391240,0.13233535,59238.0,59232.0,0.19933169]
[1724958391439,0.13233535,59238.0,59237.0,0.084385]
[1724958391645,0.13233535,59238.0,59237.0,0.28371669]
[1724958392345,0.04132847,59238.0,59237.0,0.28371669]
[1724958392751,0.5140266,59243.0,59242.0,0.084378]
[1724958392939,0.42301897,59243.0,59242.0,0.28370969]
[1724958393537,0.55535241,59243.0,59242.0,0.28370969]
[1724958393742,0.17366116,59243.0,59242.0,0.28370969]
[1724958393946,0.04132772,59243.0,59242.0,0.64450969]
[1724958394450,0.15332066,59246.0,59244.0,0.084375]
[1724958394451,0.11578812,59245.0,59244.0,0.084375]
[1724958394643,0.02097475,59246.0,59245.0,0.084374]
[1724958394951,0.3608,59250.0,59246.0,0.084372]
[1724958395250,0.3608,59250.0,59248.0,0.084369]
[1724958395251,0.0413234,59249.0,59248.0,0.084369]
[1724958395552,0.38175352,59250.0,59249.0,0.084368]
[1724958395553,0.3608,59250.0,59249.0,0.084368]
[1724958395755,0.88852591,59258.0,59254.0,0.08436]
[1724958396057,0.88852591,59258.0,59246.0,0.3608]
[1724958396058,0.04131951,59257.0,59255.0,0.084359]
[1724958396250,0.04131951,59256.0,59251.0,0.084365]
[1724958396546,0.04131951,59256.0,59246.0,2.4908]
[1724958396547,0.77784046,59258.0,59252.0,0.28369469]
[1724958396746,0.77784046,59258.0,59248.0,0.001]
[1724958396747,0.38246046,59258.0,59253.0,0.28369369]
[1724958397053,0.38246046,59258.0,59257.0,0.28368869]
[1724958397554,0.02166046,59258.0,59257.0,0.28368869]
[1724958397755,0.084348,59263.0,59257.0,0.28368869]
[1724958397951,0.084348,59263.0,59260.0,0.19933169]
[1724958398453,0.08435,59262.0,59260.0,0.19933169]
[1724958399544,0.084351,59261.0,59260.0,0.19933169]
[1724958399740,0.3608,59264.0,59263.0,0.19933169]
[1724958399948,0.3608,59264.0,59263.0,0.28367969]
[1724958402047,0.3608,59264.0,59263.0,0.28467969]
[1724958402451,0.084335,59273.0,59267.0,0.084342]
[1724958402750,0.084335,59273.0,59271.0,0.19933169]
[1724958403050,0.084335,59273.0,59272.0,0.19933169]
[1724958403844,0.084337,59271.0,59264.0,0.00025319]
[1724958404050,0.3608,59269.0,59266.0,0.19933169]
[1724958404246,0.3608,59269.0,59268.0,0.19933169]
[1724958404555,0.46679831,59276.0,59268.0,0.19933169]
[1724958404849,0.46679831,59276.0,59264.0,0.00025319]
[1724958404850,0.04130689,59275.0,59271.0,0.084336]
[1724958405050,0.04130689,59274.0,59272.0,0.084335]
[1724958405252,0.0517701,59280.0,59279.0,0.19933169]
[1724958405452,0.0517701,59280.0,59273.0,0.7908]
[1724958405453,0.04130136,59280.0,59273.0,0.3608]
[1724958405646,0.04130136,59279.0,59277.0,0.19933169]
[1724958406450,0.084324,59280.0,59277.0,0.19933169]
[1724958406659,0.04130129,59279.0,59277.0,0.19933169]
[1724958406858,0.04130129,59279.0,59273.0,0.3608]
[1724958406859,0.084324,59280.0,59273.0,0.3608]
[1724958407044,0.3608,59276.0,59273.0,0.19933169]
[1724958407247,0.04130512,59275.0,59273.0,0.19933169]
[1724958407454,0.3608,59276.0,59273.0,0.20033169]
[1724958407655,0.0413043,59275.0,59273.0,0.001]
[1724958407860,0.3608,59276.0,59274.0,0.19933169]
[1724958408052,0.3608,59276.0,59275.0,0.19933169]
[1724958408252,0.40210389,59276.0,59275.0,0.19933169]
[1724958408452,0.3608,59276.0,59275.0,0.19933169]
[1724958408763,0.04130384,59276.0,59275.0,0.19933169]
[1724958408960,0.3608,59279.0,59275.0,0.19933169]
[1724958409262,0.04130236,59278.0,59276.0,0.19933169]
[1724958409449,0.3608,59279.0,59276.0,0.19933169]
[1724958409450,0.04130236,59277.0,59276.0,0.28366169]
[1724958409649,0.04130265,59278.0,59277.0,0.084328]
[1724958410246,0.04130265,59278.0,59277.0,0.28365969]
[1724958411455,0.18938739,59278.0,59277.0,0.28465969]
[1724958411670,0.24115562,59278.0,59277.0,0.28465969]
[1724958411965,0.3646,59287.0,59277.0,0.56113169]
[1724958412260,1.14308,59294.0,59287.0,0.084314]
[1724958412450,1.14308,59294.0,59287.0,0.28364569]
[1724958412649,0.38153684,59288.0,59287.0,0.084314]
[1724958413359,0.38153684,59288.0,59277.0,0.3618]
[1724958413559,0.3608,59281.0,59277.0,0.20033169]
[1724958413760,0.3608,59283.0,59277.0,0.20033169]
[1724958414255,0.3608,59283.0,59279.0,0.19933169]
[1724958414855,0.3608,59283.0,59282.0,0.084321]
[1724958415362,0.3608,59283.0,59282.0,0.28365269]
[1724958415755,0.3608,59283.0,59282.0,0.19933169]
[1724958415954,0.3608,59283.0,59277.0,0.001]
[1724958416253,0.3591,59282.0,59280.0,0.19933169]
[1724958417059,0.3591,59282.0,59276.0,0.00025319]
[1724958417060,0.3608,59281.0,59276.0,0.00025319]
[1724958417264,0.00168,59294.0,59280.0,1.0816]
[1724958417466,0.3608,59317.0,59293.0,1.0816]
[1724958417467,0.3608,59312.0,59293.0,1.0816]
[1724958417761,0.3608,59312.0,59309.0,0.36]
[1724958418064,1.195473,59316.0,59309.0,0.36]
[1724958418262,0.02158666,59317.0,59315.0,0.805073]
[1724958418463,0.3608,59323.0,59317.0,0.08427]
[1724958418662,0.3591,59326.0,59317.0,0.08427]
[1724958419461,0.084266,59321.0,59315.0,0.00092]
[1724958419664,0.084266,59321.0,59313.0,0.3608]
[1724958419852,0.3608,59315.0,59310.0,0.00025296]
[1724958420457,0.084279,59312.0,59310.0,0.00025296]
[1724958420863,0.7563,59314.0,59310.0,0.00025296]
[1724958421167,0.5058,59313.0,59310.0,0.00025296]
[1724958421366,0.5058,59313.0,59295.0,0.36]
[1724958421571,0.3608,59300.0,59295.0,0.36]
[1724958421769,0.445099,59298.0,59288.0,0.36]
[1724958421960,0.3608,59291.0,59282.0,0.36]
[1724958422159,0.3608,59291.0,59280.0,0.3608]
[1724958422359,0.3608,59291.0,59280.0,0.36105296]
[1724958422360,0.3610515,59291.0,59280.0,0.36105296]
[1724958422760,0.3610515,59291.0,59280.0,0.00025296]
[1724958422761,0.084322,59281.0,59280.0,0.00025296]
[1724958423064,0.084322,59281.0,59261.0,0.36]
[1724958423065,0.084335,59273.0,59261.0,0.36]
[1724958423265,0.3608,59269.0,59257.0,0.084355]
[1724958423765,0.3608,59264.0,59258.0,0.084355]
[1724958424068,0.00025296,59269.0,59262.0,0.084349]
[1724958424760,0.00025296,59269.0,59268.0,0.43]
[1724958425370,0.00025296,59269.0,59261.0,0.3608]
[1724958425875,0.00025296,59269.0,59265.0,0.084345]
[1724958426367,0.00125296,59269.0,59261.0,0.3608]
[1724958426570,0.08559296,59269.0,59261.0,0.3608]
[1724958426968,0.00125296,59269.0,59261.0,0.3608]
[1724958427166,0.00025296,59269.0,59265.0,0.005]
[1724958427471,0.00025296,59269.0,59268.0,0.3608]
[1724958427678,0.00025296,59269.0,59267.0,0.084342]
[1724958427865,0.00025296,59269.0,59265.0,0.005]
[1724958429263,0.3608,59267.0,59265.0,0.005]
[1724958429475,0.3608,59267.0,59256.0,0.3608]
[1724958429661,0.3608,59267.0,59261.0,0.3608]
[1724958432071,0.0002515,59295.0,59294.0,0.084304]
[1724958432972,0.0002515,59295.0,59293.0,0.3608]
[1724958433177,0.3608,59294.0,59284.0,0.08457096]
[1724958433477,0.084309,59291.0,59284.0,0.00025296]
[1724958433663,0.3608,59289.0,59284.0,0.00025296]
[1724958434778,0.005,59291.0,59284.0,0.00125296]
[1724958435069,0.005,59291.0,59286.0,0.084315]
[1724958435879,0.005,59291.0,59284.0,0.00125296]
[1724958436078,0.005,59291.0,59284.0,0.05153654]
[1724958436284,0.02204579,59291.0,59285.0,0.05028358]
[1724958436572,0.005,59291.0,59290.0,0.08431]
[1724958436776,0.005,59291.0,59285.0,0.3608]
[1724958436777,0.3608,59294.0,59286.0,0.05028358]
[1724958436978,0.00474704,59289.0,59288.0,0.084313]
[1724958437177,0.01776475,59295.0,59287.0,0.06674013]
[1724958437368,0.01776475,59295.0,59286.0,0.3866]
[1724958437369,0.01776475,59295.0,59294.0,0.084304]
[1724958437770,0.0002515,59295.0,59294.0,0.084304]
[1724958439873,0.0012515,59295.0,59294.0,0.085304]
[1724958440366,0.0012515,59295.0,59294.0,0.001]
[1724958440772,0.0002515,59295.0,59294.0,0.001]
[1724958441180,0.0845545,59295.0,59294.0,0.001]
[1724958441383,0.0845545,59295.0,59285.0,0.3608]
[1724958441384,0.0002515,59295.0,59285.0,0.3608]
[1724958441874,0.084311,59290.0,59285.0,0.3608]
[1724958442277,0.0002515,59295.0,59285.0,0.3608]
[1724958442681,0.084309,59291.0,59285.0,0.3608]
[1724958442879,0.0002515,59295.0,59285.0,0.3608]
[1724958443082,0.083313,59288.0,59285.0,0.3608]
[1724958443278,0.083313,59288.0,59284.0,0.00025296]
[1724958443279,0.084317,59285.0,59284.0,0.00025296]
[1724958443479,0.084317,59285.0,59270.0,0.01715095]
[1724958443480,0.445117,59285.0,59270.0,0.01715095]
[1724958443680,0.084329,59277.0,59269.0,0.084339]
[1724958443879,0.3608,59280.0,59269.0,0.084339]
[1724958443880,0.08433,59276.0,59269.0,0.084339]
[1724958444380,0.3608,59280.0,59266.0,0.3608]
[1724958444381,0.3608,59274.0,59266.0,0.3608]
[1724958444572,0.084338,59271.0,59266.0,0.3608]
[1724958444770,0.084338,59271.0,59270.0,0.006]
[1724958446292,0.590498,59271.0,59270.0,0.006]
[1724958446482,0.084344,59266.0,59264.0,0.00025296]
[1724958446671,0.084345,59265.0,59264.0,0.00025296]
[1724958447188,0.084338,59270.0,59264.0,0.00025296]
[1724958447386,0.05178103,59270.0,59264.0,0.00025296]
[1724958448086,0.05178103,59270.0,59264.0,0.00125296]
[1724958448087,0.003,59265.0,59264.0,0.00125296]
[1724958448673,0.003,59265.0,59264.0,0.44639996]
[1724958449579,0.01752811,59271.0,59264.0,0.36105296]
[1724958449775,0.003,59270.0,59269.0,0.445139]
[1724958450284,0.00274704,59270.0,59269.0,0.445139]
[1724958450587,0.685,59293.0,59275.0,0.084331]
[1724958450588,0.19148,59288.0,59275.0,0.084331]
[1724958450880,0.685,59293.0,59275.0,0.084331]
[1724958450881,0.685,59293.0,59275.0,0.805131]
[1724958451088,0.685,59293.0,59276.0,0.084329]
[1724958451288,0.685,59293.0,59290.0,0.084309]
[1724958451289,0.3608,59293.0,59290.0,0.084309]
[1724958451487,0.3780522,59293.0,59289.0,0.36]
[1724958451877,0.3780522,59293.0,59286.0,0.084315]
[1724958452085,0.3780522,59293.0,59288.0,0.084312]
[1724958452285,0.3780522,59293.0,59285.0,0.3608]
[1724958452481,0.3780522,59293.0,59284.0,0.00025296]
[1724958452679,0.3780522,59293.0,59284.0,0.08456996]
[1724958452680,0.3608,59287.0,59284.0,0.08456996]
[1724958452881,0.3608,59287.0,59284.0,0.00025296]
[1724958453280,0.084317,59285.0,59284.0,0.00025296]
[1724958453478,0.3608,59285.0,59276.0,0.007]
[1724958453775,0.3608,59280.0,59276.0,0.007]
[1724958454185,0.3868,59286.0,59276.0,0.3608]
[1724958454380,0.574,59286.0,59284.0,0.001]
[1724958454788,0.002,59287.0,59284.0,0.001]
[1724958454993,0.1872,59288.0,59284.0,0.084318]
[1724958455680,0.1872,59288.0,59283.0,0.3608]
[1724958456094,0.1872,59288.0,59285.0,0.084316]
[1724958457579,0.1872,59288.0,59283.0,0.3608]
[1724958457580,0.01762269,59291.0,59290.0,0.08431]
[1724958457883,0.3608,59303.0,59294.0,0.084304]
[1724958458188,0.3608,59303.0,59294.0,0.444304]
[1724958458490,0.01742965,59298.0,59294.0,0.444304]
[1724958459083,0.37822965,59298.0,59290.0,0.3608]
[1724958459387,0.01742965,59298.0,59294.0,0.36]
[1724958459586,0.01742965,59298.0,59294.0,0.444304]
[1724958459987,0.3608,59303.0,59294.0,0.444304]
[1724958460295,0.0022515,59295.0,59294.0,0.528608]
[1724958460678,0.0022515,59295.0,59294.0,0.444304]
[1724958461183,0.0022515,59295.0,59294.0,0.445304]
[1724958462284,0.0022515,59295.0,59294.0,0.890408]
[1724958462689,5e-07,59295.0,59294.0,0.890408]
[1724958463083,0.084276,59314.0,59304.0,0.08429]
[1724958463292,0.0219,59314.0,59304.0,0.7208]
[1724958463490,0.0219,59314.0,59313.0,0.444277]
[1724958463687,0.0219,59314.0,59313.0,0.070797]
[1724958463688,0.03879706,59314.0,59313.0,0.070797]
[1724958463991,0.54459706,59314.0,59313.0,0.084277]
[1724958464208,0.09053898,59314.0,59313.0,0.084277]
[1724958464383,0.03879706,59314.0,59313.0,0.084277]
[1724958464583,0.39959706,59314.0,59308.0,0.00025296]
[1724958464896,0.05174018,59313.0,59308.0,0.00025296]
[1724958465595,0.01348,59312.0,59308.0,0.00025296]
[1724958465995,0.57102018,59312.0,59308.0,0.00025296]
[1724958466298,0.084281,59310.0,59308.0,0.00025296]
[1724958466686,0.084283,59309.0,59308.0,0.00025296]
[1724958466890,0.05174018,59309.0,59308.0,0.00025296]
[1724958467500,0.50584,59309.0,59308.0,0.00125296]
[1724958467797,0.64186318,59309.0,59308.0,0.00125296]
[1724958468997,0.64186318,59309.0,59296.0,0.084301]
[1724958468998,1.51838018,59309.0,59284.0,0.36]
[1724958469186,0.36,59311.0,59284.0,0.36]
[1724958469187,0.3608,59297.0,59284.0,0.36]
[1724958469500,0.3608,59290.0,59284.0,0.36]
[1724958469684,0.23886018,59289.0,59284.0,0.36]
[1724958469886,0.32317118,59289.0,59284.0,0.36]
[1724958470086,0.23886018,59289.0,59284.0,0.36]
[1724958470491,0.23886018,59289.0,59284.0,0.367]
[1724958470896,0.05174018,59289.0,59285.0,0.084317]
[1724958471196,0.18716,59288.0,59284.0,0.36]
[1724958471499,0.18716,59287.0,59286.0,0.084315]
[1724958471715,0.18716,59287.0,59284.0,0.365]
[1724958472094,0.18716,59287.0,59284.0,0.005]
[1724958472095,0.084317,59285.0,59284.0,0.005]
[1724958472492,0.445117,59285.0,59284.0,0.005]
[1724958472689,0.084321,59282.0,59281.0,0.00025296]
[1724958472887,0.18716,59282.0,59281.0,0.00025296]
[1724958473707,0.20432311,59282.0,59281.0,0.00025296]
[1724958473897,0.28864411,59282.0,59281.0,0.00025296]
[1724958474304,0.084323,59281.0,59271.0,0.36]
[1724958474597,0.084339,59270.0,59267.0,0.3608]
[1724958474796,0.3608,59268.0,59259.0,0.7333]
[1724958474990,0.3608,59268.0,59259.0,0.36]
[1724958475197,0.3608,59268.0,59258.0,0.00025296]
[1724958475198,0.08435,59262.0,59258.0,0.00025296]
[1724958475494,0.3608,59260.0,59258.0,0.00025296]
[1724958476395,0.1872,59260.0,59259.0,0.36]
[1724958476594,0.1872,59261.0,59259.0,0.36]
[1724958477306,0.1872,59262.0,59259.0,0.36]
[1724958477494,0.1872,59266.0,59261.0,0.36]
[1724958477896,0.37840806,59268.0,59261.0,0.36]
[1724958478101,0.3608,59268.0,59267.0,0.36]
[1724958478600,0.00025296,59269.0,59267.0,0.36]
[1724958478808,0.08459296,59269.0,59263.0,0.3608]
[1724958478998,0.084345,59266.0,59263.0,0.3608]
[1724958479196,0.00025296,59269.0,59263.0,0.3608]
[1724958480195,0.00025296,59269.0,59258.0,0.36105296]
[1724958480196,0.3608,59268.0,59258.0,0.00025296]
[1724958480406,0.083354,59259.0,59258.0,0.00025296]
[1724958480604,0.444154,59259.0,59258.0,0.00025296]
[1724958481406,0.36168,59268.0,59263.0,0.084348]
[1724958481702,0.36168,59268.0,59258.0,0.00025296]
[1724958481703,0.3608,59268.0,59262.0,0.7208]
[1724958482112,0.3608,59268.0,59264.0,0.084347]
[1724958482604,0.00225296,59269.0,59267.0,0.3608]
[1724958483007,0.002,59268.0,59267.0,0.3608]
[1724958485314,0.00025296,59269.0,59267.0,0.3608]
[1724958485509,0.00225296,59269.0,59267.0,0.3618]
[1724958486109,0.00025296,59269.0,59265.0,0.084345]
[1724958486309,0.002,59268.0,59267.0,0.001]
[1724958486612,0.002,59268.0,59267.0,0.806142]
[1724958487008,0.002,59269.0,59267.0,1.22796]
[1724958487319,0.002,59269.0,59268.0,0.950501]
[1724958487610,0.00074704,59269.0,59268.0,1.416742]
[1724958487814,0.00074704,59269.0,59268.0,1.932401]
[1724958488116,0.00074704,59269.0,59268.0,2.016742]
[1724958488612,0.00025296,59274.0,59273.0,0.084334]
[1724958488812,0.00025296,59274.0,59273.0,0.445134]
[1724958489005,0.00025296,59274.0,59273.0,1.635588]
[1724958489205,0.00025296,59274.0,59273.0,0.951254]
[1724958489206,0.01374296,59274.0,59273.0,0.951254]
[1724958489508,0.685,59297.0,59286.0,0.084315]
[1724958489702,0.685,59297.0,59291.0,0.084307]
[1724958489703,0.084304,59294.0,59291.0,0.084307]
[1724958489910,0.3827,59297.0,59291.0,0.3608]
[1724958490210,0.0219,59297.0,59296.0,0.3608]
[1724958490408,0.0388482,59297.0,59296.0,0.445101]
[1724958490608,0.0388482,59297.0,59296.0,0.3608]
[1724958491003,0.084307,59292.0,59291.0,0.00025296]
[1724958491308,0.084307,59292.0,59269.0,0.40647994]
[1724958491309,0.3608,59292.0,59274.0,0.3608]
[1724958491506,0.3608,59292.0,59267.0,0.3608]
[1724958491507,0.08433,59276.0,59267.0,0.3608]
[1724958491711,0.08433,59276.0,59262.0,0.3608]
[1724958491712,0.084336,59272.0,59263.0,0.084347]
[1724958491914,0.083336,59272.0,59263.0,0.084347]
[1724958492115,0.084339,59270.0,59262.0,0.3608]
[1724958492316,0.00025296,59272.0,59264.0,0.084347]
[1724958492514,0.18392,59271.0,59265.0,0.084345]
[1724958492706,0.18392,59271.0,59262.0,0.3608]
[1724958492912,0.18392,59271.0,59267.0,0.008]
[1724958493110,0.084338,59270.0,59267.0,0.008]
[1724958493419,0.18392,59271.0,59267.0,0.008]
[1724958493420,0.18392,59271.0,59267.0,0.3688]
[1724958493608,0.00025296,59272.0,59271.0,0.084337]
[1724958493811,0.00025296,59272.0,59271.0,0.590497]
[1724958494009,0.05176552,59285.0,59279.0,0.084325]
[1724958494228,0.05176552,59285.0,59271.0,1.48786]
[1724958494229,0.18392,59289.0,59284.0,0.36]
[1724958494416,0.051762,59290.0,59287.0,0.445113]
[1724958494711,0.051762,59291.0,59290.0,0.08431]
[1724958495326,0.01689201,59292.0,59291.0,0.084308]
[1724958495511,0.18392,59295.0,59292.0,0.084307]
[1724958495712,0.03879718,59293.0,59289.0,0.3608]
[1724958496019,0.08431,59290.0,59289.0,0.3608]
[1724958496214,0.08431,59290.0,59285.0,0.00025296]
[1724958496215,0.051762,59290.0,59285.0,0.00025296]
[1724958496427,0.3608,59291.0,59285.0,0.00025296]
[1724958496428,0.084315,59286.0,59285.0,0.00025296]
[1724958496907,0.3638,59291.0,59285.0,0.00025296]
[1724958497713,0.084311,59290.0,59285.0,0.00025296]
[1724958497909,0.087311,59290.0,59289.0,0.001]
[1724958498325,0.087311,59290.0,59263.0,0.3608]
[1724958498326,0.084313,59288.0,59263.0,0.3608]
[1724958498612,0.08433,59276.0,59263.0,0.3608]
[1724958498819,0.084334,59274.0,59266.0,0.084344]
[1724958499215,0.3598,59277.0,59265.0,0.36]
[1724958499419,0.16876,59283.0,59276.0,0.3608]
[1724958499630,0.00025296,59277.0,59269.0,0.3608]
[1724958499916,0.00025296,59277.0,59276.0,0.44513]
[1724958500322,0.00025296,59277.0,59274.0,0.3608]
[1724958500508,0.01782453,59277.0,59269.0,0.3608]
[1724958500822,0.08433,59276.0,59269.0,0.3608]
[1724958501009,0.00025296,59277.0,59269.0,0.3608]
[1724958501318,0.05177674,59276.0,59269.0,0.3608]
[1724958501521,0.084335,59272.0,59269.0,0.3608]
[1724958501736,0.08458196,59277.0,59269.0,0.3608]
[1724958502018,0.08458196,59277.0,59269.0,0.3618]
[1724958502222,0.08958196,59277.0,59269.0,0.3618]
[1724958502519,0.18396,59276.0,59269.0,0.3618]
[1724958502708,0.18396,59276.0,59274.0,0.445132]
[1724958502912,0.00525296,59277.0,59276.0,0.08433]
[1724958503315,0.00525296,59277.0,59276.0,0.59045]
[1724958503316,0.004,59277.0,59276.0,0.59045]
[1724958503517,0.004,59277.0,59276.0,1.19045]
[1724958503829,0.0219,59285.0,59284.0,0.084318]
[1724958504016,0.0219,59285.0,59284.0,0.445118]
[1724958504215,0.03955807,59285.0,59284.0,0.445118]
[1724958505620,0.04455807,59285.0,59284.0,0.446118]
[1724958505919,0.0269,59285.0,59284.0,0.446118]
[1724958506920,0.0269,59285.0,59284.0,0.806918]
[1724958507225,0.0219,59285.0,59284.0,0.805918]
[1724958507425,0.0259,59285.0,59284.0,0.805918]
[1724958507718,0.0259,59285.0,59284.0,1.311958]
[1724958507926,0.0259,59285.0,59284.0,1.41335891]
[1724958508122,0.0259,59285.0,59284.0,1.32904091]
[1724958508328,0.0259,59285.0,59284.0,0.82300091]
[1724958508527,0.0259,59285.0,59284.0,1.32904091]
[1724958508725,0.0259,59285.0,59284.0,1.311958]
[1724958509026,0.0259,59285.0,59284.0,0.805918]
[1724958510126,0.03939,59285.0,59284.0,0.805918]
[1724958510919,9.6e-07,59290.0,59289.0,0.168622]
[1724958511221,0.08428,59311.0,59290.0,0.084309]
[1724958511423,0.18392,59316.0,59312.0,0.084278]
[1724958511826,0.084277,59314.0,59312.0,0.084278]
[1724958512221,0.18392,59316.0,59311.0,0.3608]
[1724958512727,0.01348,59315.0,59311.0,0.3608]